[Event "Live Chess"]
[Site "Chess.com"]
[Date "2023.05.21"]
[Round "-"]
[White "TheSmoulderingMaster"]
[Black "FailsGambits"]
[Result "1-0"]
[WhiteElo "1663"]
[BlackElo "1328"]
[TimeControl "300"]
[EndTime "6:57:55 PDT"]
[Termination "TheSmoulderingMaster won by checkmate"]

1. e4 {[%clk 0:04:57]} 1... e5 {[%clk 0:04:59.4]} 2. Nf3 {[%clk 0:04:55.8]} 2...
Nc6 {[%clk 0:04:58.9]} 3. Bb5 {[%clk 0:04:54.6]} 3... a6 {[%clk 0:04:58.4]} 4.
Ba4 {[%clk 0:04:53.4]} 4... Nf6 {[%clk 0:04:57.1]} 5. O-O {[%clk 0:04:52]} 5...
Bc5 {[%clk 0:04:54.8]} 6. c3 {[%clk 0:04:50.8]} 6... O-O {[%clk 0:04:50]} 7. d4
{[%clk 0:04:49]} 7... exd4 {[%clk 0:04:49]} 8. cxd4 {[%clk 0:04:48.9]} 8... Ba7
{[%clk 0:04:48.2]} 9. Bg5 {[%clk 0:04:47.8]} 9... h6 {[%clk 0:04:46.3]} 10. Bh4
{[%clk 0:04:46.3]} 10... g5 {[%clk 0:04:38.2]} 11. Nxg5 {[%clk 0:04:44.1]} 11...
hxg5 {[%clk 0:04:36.3]} 12. Bxg5 {[%clk 0:04:44]} 12... Bxd4 {[%clk 0:04:24.6]}
13. Bxc6 {[%clk 0:04:41]} 13... Bxb2 {[%clk 0:04:14.2]} 14. Bd5 {[%clk
0:04:37.3]} 14... c6 {[%clk 0:03:47.4]} 15. Bb3 {[%clk 0:04:34]} 15... Bxa1
{[%clk 0:03:42.8]} 16. Nd2 {[%clk 0:04:33]} 16... Be5 {[%clk 0:03:27]} 17. f4
{[%clk 0:04:30.1]} 17... Bd4+ {[%clk 0:03:18.4]} 18. Kh1 {[%clk 0:04:28.7]}
18... Re8 {[%clk 0:02:35.7]} 19. e5 {[%clk 0:04:24]} 19... d5 {[%clk 0:02:09.5]}
20. Bxf6 {[%clk 0:04:19.8]} 20... Qc7 {[%clk 0:01:55.1]} 21. Qh5 {[%clk
0:04:15.6]} 21... Re6 {[%clk 0:01:47.2]} 22. Qh8# {[%clk 0:04:12.6]} 1-0

[Event "Live Chess"]
[Site "Chess.com"]
[Date "2023.05.21"]
[Round "-"]
[White "AMCWAML"]
[Black "JoRoSaR"]
[Result "1-0"]
[WhiteElo "2269"]
[BlackElo "1681"]
[TimeControl "300"]
[EndTime "6:57:55 PDT"]
[Termination "AMCWAML won by resignation"]

1. e4 {[%clk 0:04:58.6]} 1... c5 {[%clk 0:04:59.4]} 2. Nf3 {[%clk 0:04:57.4]}
2... Nc6 {[%clk 0:04:58.8]} 3. d4 {[%clk 0:04:56.9]} 3... cxd4 {[%clk
0:04:58.7]} 4. Nxd4 {[%clk 0:04:55.8]} 4... e5 {[%clk 0:04:58.3]} 5. Nb5 {[%clk
0:04:54.3]} 5... d6 {[%clk 0:04:57.9]} 6. N1c3 {[%clk 0:04:50.3]} 6... a6 {[%clk
0:04:56.6]} 7. Na3 {[%clk 0:04:49.8]} 7... b5 {[%clk 0:04:56.3]} 8. Nd5 {[%clk
0:04:48.2]} 8... Nce7 {[%clk 0:04:56]} 9. Ne3 {[%clk 0:04:40.2]} 9... Nf6 {[%clk
0:04:47]} 10. Bd3 {[%clk 0:04:20.6]} 10... Bb7 {[%clk 0:04:45.8]} 11. f3 {[%clk
0:04:13.7]} 11... Ng6 {[%clk 0:04:38.3]} 12. c4 {[%clk 0:04:07.7]} 12... bxc4
{[%clk 0:04:36.8]} 13. Naxc4 {[%clk 0:04:05.7]} 13... Be7 {[%clk 0:04:34.1]} 14.
Qa4+ {[%clk 0:04:02.6]} 14... Qd7 {[%clk 0:04:31.6]} 15. Qxd7+ {[%clk
0:03:59.5]} 15... Nxd7 {[%clk 0:04:31.5]} 16. Bd2 {[%clk 0:03:52]} 16... Nf4
{[%clk 0:04:30.4]} 17. Bf1 {[%clk 0:03:45.7]} 17... O-O {[%clk 0:04:28.8]} 18.
g3 {[%clk 0:03:43.9]} 18... Ne6 {[%clk 0:04:27.2]} 19. Bh3 {[%clk 0:03:38.4]}
19... Rac8 {[%clk 0:04:23.5]} 20. O-O {[%clk 0:03:33.3]} 20... Rfd8 {[%clk
0:04:21.3]} 21. Na5 {[%clk 0:03:26.6]} 21... Ba8 {[%clk 0:04:18.4]} 22. Rfc1
{[%clk 0:03:25.4]} 22... Nec5 {[%clk 0:04:17.4]} 23. b4 {[%clk 0:03:17.2]} 23...
Nd3 {[%clk 0:04:14.6]} 24. Rxc8 {[%clk 0:03:12]} 24... Rxc8 {[%clk 0:04:13.8]}
25. Bxd7 {[%clk 0:03:10.5]} 25... Rc7 {[%clk 0:04:12.4]} 26. Ba4 {[%clk
0:03:04.3]} 1-0

[Event "Live Chess"]
[Site "Chess.com"]
[Date "2023.05.21"]
[Round "-"]
[White "EdenHazard8"]
[Black "mliszewski"]
[Result "0-1"]
[WhiteElo "1965"]
[BlackElo "1837"]
[TimeControl "300"]
[EndTime "6:58:03 PDT"]
[Termination "mliszewski won by resignation"]

1. e4 {[%clk 0:04:58.9]} 1... c6 {[%clk 0:04:58.9]} 2. d4 {[%clk 0:04:57.6]}
2... d5 {[%clk 0:04:58.8]} 3. exd5 {[%clk 0:04:56.8]} 3... cxd5 {[%clk
0:04:57.8]} 4. Bd3 {[%clk 0:04:56.7]} 4... Nc6 {[%clk 0:04:56.6]} 5. c3 {[%clk
0:04:56.6]} 5... g6 {[%clk 0:04:56]} 6. Nf3 {[%clk 0:04:56]} 6... Bg7 {[%clk
0:04:53.7]} 7. O-O {[%clk 0:04:55.9]} 7... Nh6 {[%clk 0:04:51.6]} 8. Be3 {[%clk
0:04:55.8]} 8... f6 {[%clk 0:04:50.6]} 9. h3 {[%clk 0:04:53.7]} 9... Nf7 {[%clk
0:04:49.4]} 10. Qd2 {[%clk 0:04:52.4]} 10... O-O {[%clk 0:04:49.3]} 11. Na3
{[%clk 0:04:51.4]} 11... e5 {[%clk 0:04:47.7]} 12. dxe5 {[%clk 0:04:49.5]} 12...
fxe5 {[%clk 0:04:47.2]} 13. Be2 {[%clk 0:04:49.4]} 13... e4 {[%clk 0:04:46.4]}
14. Nd4 {[%clk 0:04:48.3]} 14... Qh4 {[%clk 0:04:36.6]} 15. Nac2 {[%clk
0:04:46.2]} 15... Be5 {[%clk 0:04:30.8]} 16. Nxc6 {[%clk 0:04:18]} 16... bxc6
{[%clk 0:04:28]} 17. Bd4 {[%clk 0:04:15.4]} 17... Bxh3 {[%clk 0:04:04.9]} 18.
Bxe5 {[%clk 0:04:08.7]} 18... Nxe5 {[%clk 0:04:02.7]} 19. gxh3 {[%clk
0:04:07.3]} 19... Qxh3 {[%clk 0:04:01.7]} 20. Qg5 {[%clk 0:04:01.1]} 20... Rf3
{[%clk 0:03:40.1]} 21. Nd4 {[%clk 0:03:45.3]} 21... Ng4 {[%clk 0:03:27.5]} 0-1

[Event "Live Chess"]
[Site "Chess.com"]
[Date "2023.05.21"]
[Round "-"]
[White "atunnacl"]
[Black "chessfiction"]
[Result "0-1"]
[WhiteElo "1725"]
[BlackElo "2305"]
[TimeControl "300"]
[EndTime "6:58:04 PDT"]
[Termination "chessfiction won by checkmate"]

1. e4 {[%clk 0:04:57.2]} 1... d6 {[%clk 0:04:58.8]} 2. d4 {[%clk 0:04:54.3]}
2... Nf6 {[%clk 0:04:58.7]} 3. Nc3 {[%clk 0:04:51.2]} 3... c6 {[%clk 0:04:58.6]}
4. Bd3 {[%clk 0:04:46]} 4... Qa5 {[%clk 0:04:58.5]} 5. Bd2 {[%clk 0:04:37.4]}
5... e5 {[%clk 0:04:57.6]} 6. dxe5 {[%clk 0:04:30.5]} 6... dxe5 {[%clk
0:04:57.5]} 7. h3 {[%clk 0:04:25.8]} 7... Be6 {[%clk 0:04:55.3]} 8. a3 {[%clk
0:04:20.5]} 8... Nbd7 {[%clk 0:04:53.7]} 9. b4 {[%clk 0:04:16.2]} 9... Qc7
{[%clk 0:04:52.6]} 10. Nf3 {[%clk 0:04:11.5]} 10... Nh5 {[%clk 0:04:48.7]} 11.
O-O {[%clk 0:04:00.7]} 11... O-O-O {[%clk 0:04:46]} 12. b5 {[%clk 0:03:53.4]}
12... Nc5 {[%clk 0:04:42.9]} 13. Qe2 {[%clk 0:03:34.9]} 13... Be7 {[%clk
0:04:27.8]} 14. bxc6 {[%clk 0:03:28.2]} 14... Qxc6 {[%clk 0:04:25.4]} 15. a4
{[%clk 0:03:20.5]} 15... g5 {[%clk 0:04:11.2]} 16. Nxe5 {[%clk 0:03:16.1]} 16...
Qc7 {[%clk 0:04:09.9]} 17. Nc4 {[%clk 0:03:03.3]} 17... Nf4 {[%clk 0:03:58.3]}
18. Bxf4 {[%clk 0:02:52.3]} 18... gxf4 {[%clk 0:03:58.2]} 19. a5 {[%clk
0:02:43.4]} 19... Rhg8 {[%clk 0:03:55]} 20. Kh1 {[%clk 0:02:39.9]} 20... Bf6
{[%clk 0:03:40.9]} 21. Nb5 {[%clk 0:02:22.7]} 21... Qb8 {[%clk 0:03:29.7]} 22.
Rab1 {[%clk 0:02:20]} 22... Rg5 {[%clk 0:03:20.2]} 23. Nba3 {[%clk 0:01:49]}
23... Rdg8 {[%clk 0:03:15.3]} 24. f3 {[%clk 0:01:45.5]} 24... Rg3 {[%clk
0:03:04.9]} 25. e5 {[%clk 0:01:39.2]} 25... Bxh3 {[%clk 0:02:52.3]} 26. gxh3
{[%clk 0:01:34.1]} 26... Rxh3+ {[%clk 0:02:47.7]} 27. Qh2 {[%clk 0:01:32.8]}
27... Rxh2+ {[%clk 0:02:46.4]} 28. Kxh2 {[%clk 0:01:31.6]} 28... Bxe5 {[%clk
0:02:35]} 29. Bf5+ {[%clk 0:01:23.5]} 29... Ne6 {[%clk 0:02:33.4]} 30. Be4
{[%clk 0:00:44.3]} 30... Nc5 {[%clk 0:02:15.5]} 31. Nxe5 {[%clk 0:00:37.3]}
31... Qxe5 {[%clk 0:02:13.3]} 32. a6 {[%clk 0:00:29.5]} 32... Qh5# {[%clk
0:02:11.7]} 0-1

[Event "Live Chess"]
[Site "Chess.com"]
[Date "2023.05.21"]
[Round "-"]
[White "JanMur7"]
[Black "LanceMaster23"]
[Result "0-1"]
[WhiteElo "1967"]
[BlackElo "1957"]
[TimeControl "300"]
[EndTime "6:58:05 PDT"]
[Termination "LanceMaster23 won by checkmate"]

1. e4 {[%clk 0:04:58.5]} 1... c5 {[%clk 0:04:58.8]} 2. Nf3 {[%clk 0:04:45.5]}
2... Nc6 {[%clk 0:04:58.1]} 3. c3 {[%clk 0:04:44.6]} 3... d5 {[%clk 0:04:56.8]}
4. exd5 {[%clk 0:04:43.9]} 4... Qxd5 {[%clk 0:04:56.6]} 5. d4 {[%clk 0:04:43.3]}
5... cxd4 {[%clk 0:04:56.5]} 6. cxd4 {[%clk 0:04:42.5]} 6... e6 {[%clk
0:04:53.7]} 7. Nc3 {[%clk 0:04:41.5]} 7... Qd8 {[%clk 0:04:53.5]} 8. d5 {[%clk
0:04:40.1]} 8... exd5 {[%clk 0:04:34.9]} 9. Qxd5 {[%clk 0:04:40]} 9... Qxd5
{[%clk 0:04:32.1]} 10. Nxd5 {[%clk 0:04:39.9]} 10... Bd6 {[%clk 0:04:30.4]} 11.
Bb5 {[%clk 0:04:36.7]} 11... Ne7 {[%clk 0:04:09.5]} 12. Nxe7 {[%clk 0:04:26.9]}
12... Bxe7 {[%clk 0:04:07.7]} 13. O-O {[%clk 0:04:25.6]} 13... O-O {[%clk
0:04:04]} 14. Be3 {[%clk 0:04:23.1]} 14... Bf6 {[%clk 0:03:59]} 15. Rab1 {[%clk
0:04:20.9]} 15... Bf5 {[%clk 0:03:57.8]} 16. Rbd1 {[%clk 0:04:14.6]} 16... Bxb2
{[%clk 0:03:41]} 17. Bxc6 {[%clk 0:04:09.9]} 17... bxc6 {[%clk 0:03:39.7]} 18.
Nd4 {[%clk 0:04:09.2]} 18... Be4 {[%clk 0:03:30.5]} 19. Nb3 {[%clk 0:03:40.5]}
19... a5 {[%clk 0:02:48.6]} 20. Bd4 {[%clk 0:03:32]} 20... Bxd4 {[%clk
0:02:41.7]} 21. Rxd4 {[%clk 0:03:31.9]} 21... Bd5 {[%clk 0:02:39.6]} 22. Ra4
{[%clk 0:03:23.2]} 22... g6 {[%clk 0:02:25.2]} 23. h3 {[%clk 0:02:56.7]} 23...
Rfb8 {[%clk 0:02:19.8]} 24. Rc1 {[%clk 0:02:42.6]} 24... Bxb3 {[%clk 0:01:41.3]}
25. axb3 {[%clk 0:02:38.9]} 25... Ra6 {[%clk 0:01:26.7]} 26. Rc5 {[%clk
0:02:29.4]} 26... Rb5 {[%clk 0:01:08.4]} 27. Rxb5 {[%clk 0:02:19.8]} 27... cxb5
{[%clk 0:01:07.2]} 28. Ra3 {[%clk 0:02:18]} 28... f5 {[%clk 0:00:57.7]} 29. g3
{[%clk 0:02:15.9]} 29... Kf7 {[%clk 0:00:56.7]} 30. Kg2 {[%clk 0:02:15.3]} 30...
Ke6 {[%clk 0:00:54.6]} 31. Kf3 {[%clk 0:02:14.5]} 31... g5 {[%clk 0:00:54]} 32.
Ke3 {[%clk 0:02:12.7]} 32... Kd5 {[%clk 0:00:53.3]} 33. Kd3 {[%clk 0:02:11.1]}
33... Kc5 {[%clk 0:00:52.9]} 34. Ra1 {[%clk 0:02:07.2]} 34... Kb4 {[%clk
0:00:49.8]} 35. Rb1 {[%clk 0:02:06.1]} 35... Rc6 {[%clk 0:00:35.9]} 36. Re1
{[%clk 0:01:47.2]} 36... Rc3+ {[%clk 0:00:34.8]} 37. Kd2 {[%clk 0:01:46]} 37...
Rxb3 {[%clk 0:00:31.2]} 38. Re5 {[%clk 0:01:44.8]} 38... Rf3 {[%clk 0:00:30.7]}
39. Ke2 {[%clk 0:01:43.8]} 39... g4 {[%clk 0:00:30.1]} 40. hxg4 {[%clk
0:01:40.8]} 40... fxg4 {[%clk 0:00:29.7]} 41. Re4+ {[%clk 0:01:40.7]} 41... Kc3
{[%clk 0:00:27]} 42. Rxg4 {[%clk 0:01:39.6]} 42... Rd3 {[%clk 0:00:25]} 43. Rg5
{[%clk 0:01:38.9]} 43... Rd2+ {[%clk 0:00:22.4]} 44. Ke3 {[%clk 0:01:37.8]}
44... Rb2 {[%clk 0:00:22.1]} 45. Rc5+ {[%clk 0:01:36]} 45... Kb4 {[%clk
0:00:20.2]} 46. Rh5 {[%clk 0:01:35]} 46... a4 {[%clk 0:00:19.8]} 47. Rh4+ {[%clk
0:01:34.9]} 47... Kb3 {[%clk 0:00:19.2]} 48. Rh5 {[%clk 0:01:29.9]} 48... b4
{[%clk 0:00:18.7]} 49. Rxh7 {[%clk 0:01:28.4]} 49... a3 {[%clk 0:00:18.2]} 50.
Ra7 {[%clk 0:01:28]} 50... a2 {[%clk 0:00:17.6]} 51. f4 {[%clk 0:01:26.3]} 51...
Rb1 {[%clk 0:00:17.1]} 52. f5 {[%clk 0:01:25.1]} 52... a1=Q {[%clk 0:00:16.6]}
53. Rxa1 {[%clk 0:01:24.8]} 53... Rxa1 {[%clk 0:00:16.5]} 54. g4 {[%clk
0:01:24.2]} 54... Rg1 {[%clk 0:00:15.4]} 55. g5 {[%clk 0:01:24.1]} 55... Rxg5
{[%clk 0:00:13.9]} 56. Kf4 {[%clk 0:01:24]} 56... Rxf5+ {[%clk 0:00:13.5]} 57.
Kxf5 {[%clk 0:01:23.9]} 57... Kc3 {[%clk 0:00:13.3]} 58. Ke4 {[%clk 0:01:23.7]}
58... b3 {[%clk 0:00:13.2]} 59. Kd5 {[%clk 0:01:23.5]} 59... b2 {[%clk
0:00:13.1]} 60. Kc5 {[%clk 0:01:23.4]} 60... b1=Q {[%clk 0:00:12.3]} 61. Kd5
{[%clk 0:01:23.3]} 61... Qb4 {[%clk 0:00:11.9]} 62. Ke5 {[%clk 0:01:22.3]} 62...
Qc4 {[%clk 0:00:11.8]} 63. Kf6 {[%clk 0:01:22.2]} 63... Qd4+ {[%clk 0:00:11.7]}
64. Ke6 {[%clk 0:01:22.1]} 64... Kc4 {[%clk 0:00:11.6]} 65. Ke7 {[%clk
0:01:21.4]} 65... Qd5 {[%clk 0:00:11.5]} 66. Kf6 {[%clk 0:01:20.6]} 66... Kc5
{[%clk 0:00:11.4]} 67. Kg6 {[%clk 0:01:20]} 67... Qe5 {[%clk 0:00:10.9]} 68. Kh6
{[%clk 0:01:19.9]} 68... Kd6 {[%clk 0:00:10.7]} 69. Kg6 {[%clk 0:01:19.1]} 69...
Ke6 {[%clk 0:00:10.6]} 70. Kh7 {[%clk 0:01:18.1]} 70... Qg3 {[%clk 0:00:09.8]}
71. Kh6 {[%clk 0:01:17.2]} 71... Kf7 {[%clk 0:00:09.7]} 72. Kh7 {[%clk
0:01:17.1]} 72... Qg7# {[%clk 0:00:08.8]} 0-1

[Event "Live Chess"]
[Site "Chess.com"]
[Date "2023.05.21"]
[Round "-"]
[White "luckywookie"]
[Black "wot-not"]
[Result "0-1"]
[WhiteElo "821"]
[BlackElo "1542"]
[TimeControl "300"]
[EndTime "6:58:14 PDT"]
[Termination "wot-not won by checkmate"]

1. e4 {[%clk 0:04:58]} 1... d5 {[%clk 0:04:58.3]} 2. exd5 {[%clk 0:04:52.1]}
2... Nf6 {[%clk 0:04:57.4]} 3. Nc3 {[%clk 0:04:49.7]} 3... Nxd5 {[%clk
0:04:52.8]} 4. Nxd5 {[%clk 0:04:47.9]} 4... Qxd5 {[%clk 0:04:51.9]} 5. Nf3
{[%clk 0:04:44.2]} 5... Bg4 {[%clk 0:04:50.8]} 6. Be2 {[%clk 0:04:42.2]} 6... e5
{[%clk 0:04:47.5]} 7. c4 {[%clk 0:04:31.9]} 7... Qc6 {[%clk 0:04:40.8]} 8. d3
{[%clk 0:04:27.8]} 8... Bc5 {[%clk 0:04:38.7]} 9. Nxe5 {[%clk 0:04:19.8]} 9...
Qxg2 {[%clk 0:04:35.1]} 10. Rf1 {[%clk 0:03:45.4]} 10... Bxe2 {[%clk 0:04:30]}
11. Qxe2 {[%clk 0:03:44.1]} 11... O-O {[%clk 0:04:28.4]} 12. Be3 {[%clk
0:03:28.5]} 12... Bb4+ {[%clk 0:04:24.3]} 13. Bd2 {[%clk 0:03:19]} 13... Nc6
{[%clk 0:04:17]} 14. O-O-O {[%clk 0:03:17.5]} 14... Bxd2+ {[%clk 0:04:13.2]} 15.
Qxd2 {[%clk 0:03:12.9]} 15... Nxe5 {[%clk 0:04:09.2]} 16. Rg1 {[%clk 0:03:09.8]}
16... Qxh2 {[%clk 0:04:03]} 17. Rh1 {[%clk 0:03:05.3]} 17... Qg2 {[%clk
0:03:57.7]} 18. Rdg1 {[%clk 0:03:04.1]} 18... Qc6 {[%clk 0:03:46.7]} 19. Rxg7+
{[%clk 0:02:56.3]} 19... Kxg7 {[%clk 0:03:45]} 20. Qg5+ {[%clk 0:02:49.3]} 20...
Ng6 {[%clk 0:03:42.7]} 21. Qh6+ {[%clk 0:02:38.6]} 21... Kf6 {[%clk 0:03:40]}
22. f4 {[%clk 0:02:10.3]} 22... Qc5 {[%clk 0:03:20.1]} 23. Rh5 {[%clk
0:02:00.7]} 23... Qe3+ {[%clk 0:03:12]} 24. Kc2 {[%clk 0:01:58.8]} 24... Qxf4
{[%clk 0:03:09.2]} 25. Qxf4+ {[%clk 0:01:36.1]} 25... Nxf4 {[%clk 0:03:07.3]}
26. Rxh7 {[%clk 0:01:36]} 26... Rad8 {[%clk 0:03:00.5]} 27. Rh4 {[%clk
0:01:32.5]} 27... Nxd3 {[%clk 0:02:56.8]} 28. Rh6+ {[%clk 0:01:26.7]} 28... Kg7
{[%clk 0:02:54.9]} 29. Rh1 {[%clk 0:01:22.5]} 29... f5 {[%clk 0:02:52]} 30. Rg1+
{[%clk 0:01:21.3]} 30... Kf6 {[%clk 0:02:50.7]} 31. Rf1 {[%clk 0:01:13.1]} 31...
f4 {[%clk 0:02:48.3]} 32. Rf3 {[%clk 0:01:11.2]} 32... Kf5 {[%clk 0:02:41]} 33.
Kc3 {[%clk 0:01:09]} 33... Ne5 {[%clk 0:02:36.4]} 34. Rh3 {[%clk 0:01:05.9]}
34... Rd3+ {[%clk 0:02:34.5]} 35. Rxd3 {[%clk 0:01:04.3]} 35... Nxd3 {[%clk
0:02:33.8]} 36. Kxd3 {[%clk 0:01:03.6]} 36... Re8 {[%clk 0:02:33.5]} 37. b4
{[%clk 0:01:00.8]} 37... f3 {[%clk 0:02:32.9]} 38. a4 {[%clk 0:01:00.1]} 38...
f2 {[%clk 0:02:32.4]} 39. c5 {[%clk 0:00:59.6]} 39... f1=Q+ {[%clk 0:02:31.7]}
40. Kc3 {[%clk 0:00:58]} 40... Re4 {[%clk 0:02:28.6]} 41. b5 {[%clk 0:00:56.7]}
41... Qc4+ {[%clk 0:02:27.2]} 42. Kb2 {[%clk 0:00:54.3]} 42... Re2+ {[%clk
0:02:25.4]} 43. Kb1 {[%clk 0:00:51.9]} 43... Qc2+ {[%clk 0:02:23.1]} 44. Ka1
{[%clk 0:00:50.6]} 44... Qb2# {[%clk 0:02:21.9]} 0-1

[Event "Live Chess"]
[Site "Chess.com"]
[Date "2023.05.21"]
[Round "-"]
[White "Tushinskiy"]
[Black "YrrriKharkiv"]
[Result "1-0"]
[WhiteElo "2221"]
[BlackElo "2069"]
[TimeControl "300"]
[EndTime "6:58:18 PDT"]
[Termination "Tushinskiy won by resignation"]

1. d4 {[%clk 0:04:57.9]} 1... Nf6 {[%clk 0:04:58.4]} 2. c3 {[%clk 0:04:57.8]}
2... c5 {[%clk 0:04:56]} 3. Nf3 {[%clk 0:04:57.7]} 3... e6 {[%clk 0:04:54.8]} 4.
Bf4 {[%clk 0:04:56.2]} 4... Qb6 {[%clk 0:04:51.6]} 5. Qc1 {[%clk 0:04:51.8]}
5... d6 {[%clk 0:04:46.3]} 6. e3 {[%clk 0:04:50.8]} 6... Bd7 {[%clk 0:04:45]} 7.
Bd3 {[%clk 0:04:48.4]} 7... Nc6 {[%clk 0:04:39.4]} 8. Nbd2 {[%clk 0:04:45.1]}
8... d5 {[%clk 0:04:37.1]} 9. O-O {[%clk 0:04:42.7]} 9... Rc8 {[%clk 0:04:35.1]}
10. Re1 {[%clk 0:04:37.8]} 10... Be7 {[%clk 0:04:31.4]} 11. Bg3 {[%clk
0:04:36.2]} 11... O-O {[%clk 0:04:18.9]} 12. Qb1 {[%clk 0:04:34.6]} 12... g6
{[%clk 0:04:17]} 13. Ne5 {[%clk 0:04:28.6]} 13... Qd8 {[%clk 0:04:09.5]} 14. f4
{[%clk 0:04:24.9]} 14... c4 {[%clk 0:04:00]} 15. Bc2 {[%clk 0:04:22.9]} 15...
Ne8 {[%clk 0:03:55.1]} 16. Ndf3 {[%clk 0:04:19.8]} 16... Ng7 {[%clk 0:03:48.7]}
17. e4 {[%clk 0:04:15.7]} 17... dxe4 {[%clk 0:03:45.6]} 18. Bxe4 {[%clk
0:04:15.6]} 18... Nf5 {[%clk 0:03:39.5]} 19. Bxf5 {[%clk 0:04:07.5]} 19... exf5
{[%clk 0:03:36.2]} 20. h4 {[%clk 0:04:05.3]} 20... Be6 {[%clk 0:03:24.8]} 21. h5
{[%clk 0:04:03.3]} 21... Bf6 {[%clk 0:03:18]} 22. hxg6 {[%clk 0:04:01.9]} 22...
hxg6 {[%clk 0:03:16.7]} 23. Nxg6 {[%clk 0:04:00.2]} 23... Re8 {[%clk 0:02:53.2]}
24. Ngh4 {[%clk 0:03:54.2]} 24... Qd7 {[%clk 0:02:41.6]} 25. Qc2 {[%clk
0:03:44.3]} 25... Kg7 {[%clk 0:02:37.2]} 26. Rad1 {[%clk 0:03:38.2]} 26... Ne7
{[%clk 0:02:30.2]} 27. Ne5 {[%clk 0:03:34.5]} 27... Qd5 {[%clk 0:02:23.6]} 28.
Re3 {[%clk 0:03:28.2]} 28... Rh8 {[%clk 0:02:20.8]} 29. Nhf3 {[%clk 0:03:16.6]}
29... Rh6 {[%clk 0:02:08.2]} 30. Rde1 {[%clk 0:03:02.6]} 30... Ng6 {[%clk
0:02:04.5]} 31. Ng5 {[%clk 0:02:50.9]} 31... Bxg5 {[%clk 0:01:52.5]} 32. fxg5
{[%clk 0:02:47.9]} 32... Rh5 {[%clk 0:01:48.2]} 33. Nxg6 {[%clk 0:02:44.8]}
33... Kxg6 {[%clk 0:01:45]} 34. Bf4 {[%clk 0:02:40.8]} 34... Rch8 {[%clk
0:01:40.8]} 35. Kf2 {[%clk 0:02:38]} 35... Rh4 {[%clk 0:01:39.1]} 36. Bg3 {[%clk
0:02:32.4]} 36... Rg4 {[%clk 0:01:33.2]} 37. Re5 {[%clk 0:02:25.4]} 37... Qd7
{[%clk 0:01:28.9]} 38. Qe2 {[%clk 0:01:43.6]} 38... Rxg5 {[%clk 0:01:20.3]} 39.
d5 {[%clk 0:01:22.5]} 39... Bxd5 {[%clk 0:01:04.8]} 40. Rd1 {[%clk 0:01:21.5]}
40... Rxg3 {[%clk 0:00:58.3]} 41. Rdxd5 {[%clk 0:01:17]} 41... Rxg2+ {[%clk
0:00:47.7]} 42. Kxg2 {[%clk 0:01:16]} 42... Qc6 {[%clk 0:00:46.6]} 43. Qf3
{[%clk 0:01:12.8]} 43... Qf6 {[%clk 0:00:43.7]} 44. Rxf5 {[%clk 0:01:08.5]} 1-0

[Event "Live Chess"]
[Site "Chess.com"]
[Date "2023.05.21"]
[Round "-"]
[White "LiamClery2020"]
[Black "Ocelot32"]
[Result "1-0"]
[WhiteElo "1955"]
[BlackElo "1393"]
[TimeControl "300"]
[EndTime "6:58:19 PDT"]
[Termination "LiamClery2020 won by resignation"]

1. e4 {[%clk 0:04:59.8]} 1... e6 {[%clk 0:04:57.8]} 2. d4 {[%clk 0:04:56.7]}
2... d5 {[%clk 0:04:55.8]} 3. Nd2 {[%clk 0:04:53.7]} 3... dxe4 {[%clk
0:04:53.2]} 4. Nxe4 {[%clk 0:04:53.2]} 4... Nd7 {[%clk 0:04:52.5]} 5. Nf3 {[%clk
0:04:50]} 5... Ngf6 {[%clk 0:04:51.9]} 6. Nxf6+ {[%clk 0:04:44.8]} 6... Nxf6
{[%clk 0:04:50.7]} 7. Bd3 {[%clk 0:04:44.7]} 7... c5 {[%clk 0:04:48.8]} 8. c3
{[%clk 0:04:43.4]} 8... cxd4 {[%clk 0:04:47.5]} 9. Nxd4 {[%clk 0:04:42.8]} 9...
Bd6 {[%clk 0:04:36.8]} 10. Qf3 {[%clk 0:04:40]} 10... O-O {[%clk 0:04:34.2]} 11.
Bg5 {[%clk 0:04:38.4]} 11... Be7 {[%clk 0:04:23.3]} 12. O-O {[%clk 0:04:31.5]}
12... h6 {[%clk 0:04:21.3]} 13. Bh4 {[%clk 0:04:27.3]} 13... Qc7 {[%clk
0:04:09.4]} 14. Bg3 {[%clk 0:04:20.5]} 14... Qd7 {[%clk 0:04:04.3]} 15. Rad1
{[%clk 0:04:18]} 15... Nd5 {[%clk 0:03:59]} 16. Bb5 {[%clk 0:04:02.3]} 16... Qd8
{[%clk 0:03:49.9]} 17. c4 {[%clk 0:04:01.2]} 17... Nf6 {[%clk 0:03:45.2]} 18.
Nxe6 {[%clk 0:03:57.4]} 18... Qa5 {[%clk 0:03:34.9]} 19. Nxf8 {[%clk 0:03:54.6]}
1-0